bitfinex-derivatives/quotes_ETHF0:USTF0_20250410
["timestamp","ask_amount","ask_price","bid_price","bid_amount"]
[1744270536104,4.8e-07,1589.0,1588.9,42.05908]
[1744270536297,3.20780048,1589.0,1588.9,42.05908]
[1744270536499,4.8e-07,1589.0,1588.9,42.05908]
[1744270536905,8.20780048,1589.0,1588.9,40.8]
[1744270537104,8.20780048,1589.0,1588.9,42.05908]
[1744270537409,5.97220048,1589.0,1588.9,40.8]
[1744270537607,10.97220048,1589.0,1588.9,40.8]
[1744270537809,10.97220048,1589.0,1588.9,42.05908]
[1744270538006,10.97220048,1589.0,1588.9,40.8]
[1744270538814,12.23120048,1589.0,1588.9,40.8]
[1744270539109,12.23120048,1589.0,1588.8,1.25916]
[1744270539509,10.97220048,1589.0,1588.7,0.00944048]
[1744270539709,7.23122048,1589.0,1588.7,0.00944048]
[1744270539913,4.02342048,1589.0,1588.8,1.25913]
[1744270540102,3.2078,1588.9,1588.8,1.25913]
[1744270540407,6.0453,1588.9,1588.8,1.25913]
[1744270540604,11.0453,1588.9,1588.8,1.25913]
[1744270540910,6.0453,1588.9,1588.7,1.26864048]
[1744270541316,1.25916,1588.8,1588.7,0.00944048]
[1744270541606,3.2078,1588.9,1588.7,1.26864048]
[1744270541807,2.8375,1588.8,1588.7,1.26868048]
[1744270542001,2.8375,1588.8,1588.7,0.00944048]
[1744270542312,2.8375,1588.8,1588.7,1.26868048]
[1744270543205,4.8e-07,1589.0,1588.7,5.00944048]
[1744270543511,4.8e-07,1589.0,1588.7,0.00944048]
[1744270543712,4.8e-07,1589.0,1588.8,1.25914]
[1744270544006,3.2078,1588.9,1588.8,1.25914]
[1744270544207,2.79540048,1589.0,1588.9,1.25908]
[1744270544610,2.79540048,1589.0,1588.7,0.00944048]
[1744270544806,2.79540048,1589.0,1588.9,1.25908]
[1744270545710,4.8e-07,1589.0,1588.9,9.46688]
[1744270546103,4.8e-07,1589.0,1588.9,6.25908]
[1744270546410,4.8e-07,1589.0,1588.7,0.00944048]
[1744270546909,1.25901048,1589.0,1588.7,0.00944048]
[1744270547111,2.7136,1588.9,1588.7,0.00944048]
[1744270547505,2.7136,1588.9,1588.7,1.26866048]
[1744270547702,2.7136,1588.9,1588.7,0.00944048]
[1744270547910,3.20780048,1589.0,1588.7,0.00944048]
[1744270548106,5.82459001,1589.4,1588.7,0.00944048]
[1744270548107,1.25852,1589.7,1589.2,1.25881]
[1744270548412,2.9125,1590.1,1589.4,3.2078]
[1744270548711,2.9125,1589.8,1589.5,42.05855]
[1744270548907,2.9125,1589.8,1589.5,43.6419]
[1744270549214,2.9125,1589.8,1589.5,40.80944048]
[1744270549515,3.2078,1589.7,1589.5,40.80944048]
[1744270549814,1.25822,1590.0,1589.5,42.06803048]
[1744270550010,14.64073653,1590.2,1589.5,40.80944048]
[1744270550312,2.9125,1589.9,1589.6,4.10038]
[1744270550510,2.9125,1589.9,1589.5,44.01724048]
[1744270551114,2.9125,1589.9,1589.7,1.2584]
[1744270551416,2.9125,1589.9,1589.6,2.9169]
[1744270551417,2.9125,1589.9,1589.6,13.4619]
[1744270551612,3.2078,1589.8,1589.6,10.545]
[1744270551814,2.7126,1589.7,1589.6,10.545]
[1744270552316,2.7126,1589.7,1589.6,11.80353]
[1744270552516,3.2078,1590.0,1589.6,11.80353]
[1744270552713,3.2078,1589.8,1589.6,10.545]
[1744270553016,3.2078,1590.0,1589.6,10.545]
[1744270553310,5.9204,1590.2,1589.6,10.545]
[1744270553509,7.17848,1590.2,1589.7,6.1247]
[1744270553711,5.9204,1590.2,1589.8,1.25833]
[1744270553909,5.9204,1590.2,1589.9,1.25828]
[1744270554112,5.9204,1590.2,1589.9,1.25829]
[1744270554416,5.9204,1590.2,1589.9,1.25823]
[1744270555011,5.9204,1590.2,1590.0,1.25821]
[1744270555217,5.9204,1590.2,1589.9,1.25823]
[1744270555416,5.9204,1590.2,1589.7,2.9169]
[1744270555610,2.7126,1590.2,1590.1,1.25813]
[1744270557019,3.2078,1590.5,1589.9,2.9056]
[1744270557318,3.2078,1590.3,1590.2,1.25805]
[1744270557814,3.2078,1590.7,1590.3,1.25791]
[1744270558008,2.8591,1590.6,1590.1,13.188]
[1744270558213,3.2078,1590.4,1590.3,0.00944048]
[1744270558521,4.85289646,1590.4,1590.3,0.00944048]
[1744270558720,10.32584455,1590.4,1590.3,0.00944048]
[1744270558926,9.85289646,1590.4,1590.3,0.00944048]
[1744270559117,10.32586649,1590.4,1590.3,4.8e-07]
[1744270559622,13.18496649,1590.4,1590.3,4.8e-07]
[1744270560511,3.14546,1590.1,1589.6,1.25852]
[1744270560709,1.25837,1589.8,1589.6,1.25852]
[1744270560910,1.25849,1589.7,1589.5,42.05855]
[1744270561116,7.36779,1589.7,1589.5,42.05853]
[1744270561422,7.36779,1589.7,1589.5,42.05854]
[1744270561725,6.1093,1589.7,1589.5,40.8]
[1744270562118,6.1093,1589.7,1589.5,42.05857]
[1744270562317,0.38733355,1589.6,1589.5,42.0586]
[1744270562514,2.9015,1589.6,1589.5,42.0586]
[1744270562721,3.2078,1589.9,1589.6,1.25853]
[1744270563026,3.2078,1589.7,1589.6,1.25853]
[1744270563231,5.834,1589.8,1589.7,1.25845]
[1744270563429,3.2078,1589.9,1589.8,1.25837]
[1744270563628,8.5919,1590.1,1590.0,1.25821]
[1744270563823,8.97942666,1590.1,1590.0,1.25821]
[1744270564129,8.97942666,1590.1,1589.7,4.16512]
[1744270564429,8.5919,1590.1,1589.7,4.16511]
[1744270564631,3.2078,1590.0,1589.7,2.9067]
[1744270564925,2.7579,1589.9,1589.7,4.16514]
[1744270565130,2.7579,1589.9,1589.7,2.9067]
[1744270565321,2.7579,1589.9,1589.5,3.2078]
[1744270565722,5.834,1590.1,1589.5,3.2078]
[1744270565922,2.7579,1590.0,1589.7,1.25843]
[1744270566133,1.2586,1589.5,1589.4,0.00944048]
[1744270566329,4.06809604,1589.5,1588.6,3.2078]
[1744270566524,2.759,1589.4,1589.0,3.2078]
[1744270566828,17.84909,1589.9,1589.1,40.8]
[1744270566829,14.7032,1589.9,1589.1,40.8]
[1744270567027,2.759,1589.6,1589.2,1.2588]
[1744270567226,2.759,1589.6,1589.1,42.0589]
[1744270567425,4.01756,1589.6,1589.1,40.8]
[1744270567623,0.00944048,1589.5,1589.2,0.00944048]
[1744270567931,1.26806048,1589.5,1589.2,0.00944048]
[1744270568132,2.76844048,1589.5,1589.2,0.00944048]
[1744270568635,2.76844048,1589.5,1589.2,2.76624048]
[1744270568926,2.76844048,1589.5,1589.2,5.97404048]
[1744270569132,0.00944048,1589.5,1589.4,3.2078]
[1744270569330,0.00944048,1589.5,1589.4,15.9797]
[1744270569529,0.00944048,1589.5,1589.4,22.23838]
[1744270570126,3.2078,1589.9,1589.4,22.23838]
[1744270570327,1.25821,1590.0,1589.4,15.9797]
[1744270570523,3.2078,1590.0,1589.4,15.9797]
[1744270570722,3.38643534,1589.9,1589.4,2.8619]
[1744270571023,5.834,1589.8,1589.4,3.2078]
[1744270571229,1.25854,1589.6,1589.2,0.00944048]
[1744270571428,4.25761,1589.5,1589.2,0.00944048]
[1744270571620,2.999,1589.5,1589.2,0.00944048]
[1744270571818,2.999,1589.5,1589.2,2.87134048]
[1744270572235,2.999,1589.5,1589.3,4.46652]
[1744270572429,1.25848,1589.7,1589.4,3.0122]
[1744270572628,7.38278,1589.7,1589.2,3.21724048]
[1744270572928,2.9165,1589.7,1589.2,6.22944048]
[1744270573130,2.9165,1589.7,1589.4,1.25864]
[1744270573334,2.9165,1589.7,1589.5,3.0122]
[1744270574132,0.00944048,1589.8,1589.5,7.47855]
[1744270574332,0.00944048,1589.8,1589.5,3.0122]
[1744270574635,3.2078,1590.2,1590.0,1.25815]
[1744270574833,9.51544302,1590.3,1589.9,9.911]
[1744270575033,12.43194302,1590.3,1590.2,1.25805]
[1744270575221,12.82066073,1590.3,1590.2,1.25805]
[1744270575427,12.8206689,1590.3,1590.1,1.25807]
[1744270575734,12.43194302,1590.3,1590.2,42.05805]
[1744270576029,9.51544302,1590.3,1590.2,42.05805]
[1744270576331,9.51544302,1590.3,1590.2,50.26585]
[1744270576723,9.51544302,1590.3,1590.2,40.8]
[1744270577334,19.84509593,1590.3,1590.0,0.00944048]
[1744270577535,3.31019814,1590.2,1590.0,0.00944048]
[1744270577726,9.51544302,1590.3,1590.2,1.25805]
[1744270577926,9.51544302,1590.3,1590.2,42.05805]
[1744270578126,9.51544302,1590.3,1590.2,40.8]
[1744270578434,9.51544302,1590.3,1590.2,42.05805]
[1744270578732,9.51544302,1590.3,1590.2,50.26585]
[1744270579135,2.8414,1590.6,1590.5,1.25781]
[1744270579320,10.35836842,1590.9,1590.4,9.604]
[1744270579526,3.23008999,1590.8,1590.5,1.25779]
[1744270579727,0.38868999,1590.7,1590.5,1.25778]
[1744270579930,2.8414,1590.6,1590.5,1.25778]
[1744270580127,6.0492,1590.6,1590.4,9.604]
[1744270580323,16.8832,1590.6,1590.2,44.0078]
[1744270580529,3.2078,1590.4,1590.2,40.8]
[1744270580732,2.8414,1590.3,1590.2,42.05805]
[1744270581533,9.0418,1590.6,1590.2,44.0078]
[1744270581730,3.35671372,1590.5,1590.2,40.8]
[1744270581923,3.35671372,1590.5,1590.3,1.25792]
[1744270581924,2.9684,1590.5,1590.3,1.25792]
[1744270582130,1.25798,1590.3,1590.0,1.26761048]
[1744270582339,6.1762,1590.2,1590.0,0.00944048]
[1744270582527,0.86212203,1590.1,1589.4,9.604]
[1744270582839,3.2078,1589.8,1589.2,3.14698]
[1744270583025,3.2078,1589.8,1589.5,1.25853]
[1744270583333,3.2078,1589.6,1588.8,3.2078]
[1744270583631,3.2078,1589.2,1588.7,105.0793]
[1744270583826,0.00944048,1589.4,1589.0,0.00944048]
[1744270584023,3.2078,1589.3,1589.0,0.00944048]
[1744270584227,1.25892,1589.1,1589.0,0.00944048]
[1744270584536,3.59537907,1589.1,1589.0,0.00944048]
[1744270584739,3.21724048,1589.4,1589.0,0.00944048]
[1744270584944,0.00944048,1589.4,1589.0,0.00944048]
[1744270585130,0.00944048,1589.4,1589.0,6.20354048]
[1744270585330,0.00944048,1589.4,1589.3,1.25876]
[1744270586737,1e-08,1589.4,1589.3,6.25876]
[1744270587625,9.51544302,1589.7,1589.3,5.6296]
[1744270587832,9.51544302,1589.7,1589.6,4.46633]
[1744270588031,9.51544302,1589.7,1589.6,54.87233]
[1744270588329,9.51544302,1589.7,1589.6,59.87233]
[1744270590234,9.51544302,1589.7,1589.6,54.87233]
[1744270591233,2.9207,1590.0,1589.8,1.25831]
[1744270592336,2.9207,1590.0,1589.6,53.6138]
[1744270592542,2.9207,1590.0,1589.8,1.25836]
[1744270592834,2.9207,1590.0,1589.7,1.25842]
[1744270593434,2.9207,1590.0,1589.6,53.6138]
[1744270593636,2.9207,1590.0,1589.7,1.25839]
[1744270594632,3.2078,1589.8,1589.6,40.8]
[1744270594829,2.8621,1589.7,1589.6,40.8]
[1744270595038,2.8621,1589.7,1589.6,42.05853]
[1744270595643,2.8621,1589.7,1589.6,40.8]
[1744270595937,2.8621,1589.7,1589.6,42.05853]
[1744270596141,2.8621,1589.7,1589.6,1.25853]
[1744270596448,7.8621,1589.7,1589.3,3.2078]
[1744270596638,9.0418,1589.6,1589.4,40.8]
[1744270596844,2.9846,1589.5,1589.4,40.8]
[1744270597142,2.9846,1589.5,1589.4,1.25868]
[1744270597641,2.9846,1589.5,1589.4,42.05868]
[1744270598235,2.9846,1589.5,1589.4,40.8]
[1744270598434,6.1924,1589.5,1589.4,40.8]
[1744270598636,11.1924,1589.5,1589.4,40.8]
[1744270598943,2.9846,1589.5,1589.4,42.05868]
[1744270600343,17.0264,1589.5,1589.0,0.00944048]
[1744270600544,0.38709633,1589.4,1589.3,1.25876]
[1744270600745,2.9448,1589.4,1589.3,1.25876]
[1744270601036,8.33188629,1589.4,1589.0,40.80944048]
[1744270601344,1.25892,1589.1,1589.0,0.00944048]
[1744270601546,7.09292,1589.1,1589.0,0.00944048]
[1744270601743,10.4245742,1589.1,1589.0,0.00944048]
[1744270602042,8.7788,1589.1,1589.0,1.26844048]
[1744270602242,8.7788,1589.1,1589.0,0.00944048]
[1744270602439,10.03772,1589.1,1589.0,0.00944048]
[1744270602642,15.42425891,1589.1,1589.0,0.00944048]
[1744270603747,15.42395958,1589.1,1589.0,0.00944048]
[1744270604249,10.03772,1589.1,1589.0,0.00944048]
[1744270604649,8.7788,1589.1,1589.0,1.26844048]
[1744270605643,10.03772,1589.1,1589.0,0.00944048]
[1744270605948,13.24552,1589.1,1589.0,0.00944048]
[1744270606152,18.24552,1589.1,1589.0,0.00944048]
[1744270606340,26.3873682,1589.1,1588.1,1.25966]
[1744270606650,26.3873682,1589.1,1587.8,3.44465182]
[1744270606651,6.35677,1588.3,1587.8,3.2078]
[1744270606846,1.25979,1588.0,1587.9,40.8]
[1744270607348,3.2078,1588.1,1587.9,42.05984]
[1744270607549,0.00944048,1588.1,1588.0,1.25975]
[1744270607848,0.00944048,1588.1,1588.0,4.46755]
[1744270608047,1.26918048,1588.1,1587.9,40.8]
[1744270608238,0.00944048,1588.1,1587.9,40.8]
[1744270608445,1.25987,1587.9,1587.8,0.00944048]
[1744270608645,6.25987,1587.9,1587.8,0.00944048]
[1744270609347,1.26019,1587.5,1587.4,19.93436353]
[1744270609539,5.834,1587.5,1587.4,19.93436353]
[1744270609745,5.834,1587.5,1587.4,60.73436353]
[1744270609945,5.834,1588.0,1587.4,68.94216353]
[1744270610147,3.2078,1588.0,1587.5,3.2078]
[1744270610342,1.26019,1587.5,1587.4,60.73436353]
[1744270610543,10.30199,1587.5,1587.4,19.93436353]
[1744270610743,12.09419,1587.5,1587.4,19.93436353]
[1744270611053,1.26051,1587.1,1587.0,29.24493249]
[1744270611345,5.834,1587.1,1587.0,29.24493249]
[1744270611546,5.834,1587.1,1587.0,1.26059]
[1744270611853,5.834,1587.5,1587.0,8.2078]
[1744270612053,1.26012,1587.6,1587.3,1.26031]
[1744270612249,1.26012,1587.6,1587.4,2.9357]
[1744270612552,0.00944048,1587.6,1587.5,1.26019]
[1744270612747,3.21724048,1587.6,1587.4,2.9357]
[1744270612940,3.21724048,1587.6,1586.9,3.21724048]
[1744270612941,8.21724048,1587.6,1586.9,3.21724048]
[1744270613248,3.2078,1587.4,1587.0,2.9357]
[1744270613449,1.26046,1587.2,1587.0,2.9357]
[1744270613652,1.2603,1587.4,1587.1,42.06048]
[1744270613846,1.26036,1587.3,1587.1,40.8]
[1744270614044,1.26035,1587.3,1587.1,40.8]
[1744270614244,1.26035,1587.3,1587.1,43.7357]
[1744270614450,4.04529,1587.4,1587.1,44.99618]
[1744270614652,1.26959048,1587.6,1587.3,1.2603]
[1744270614850,0.00944048,1587.6,1587.4,9.022]
[1744270615053,0.00944048,1587.6,1587.5,7.33099]
[1744270615552,1e-08,1587.6,1587.5,12.33099]
[1744270615955,1e-08,1587.6,1587.5,9.12319]
[1744270616251,1e-08,1587.6,1587.5,4.12319]
[1744270616755,1e-08,1587.6,1587.5,2.863]
[1744270616954,1e-08,1587.6,1587.5,9.12319]
[1744270617154,1e-08,1587.6,1587.5,12.33099]
[1744270617354,1e-08,1587.6,1587.5,4.12319]
[1744270617541,1e-08,1587.6,1587.5,7.33099]
[1744270618343,1e-08,1587.6,1587.5,2.863]
[1744270618753,1e-08,1587.6,1587.5,4.12319]
[1744270619452,1e-08,1587.6,1587.5,2.863]
[1744270619657,1e-08,1587.6,1587.5,4.12319]
[1744270620158,1e-08,1587.6,1587.5,2.863]
[1744270620453,15.30197001,1587.6,1587.2,1.2604]
[1744270620650,15.30197001,1587.6,1587.1,40.8]
[1744270620651,9.04180001,1587.6,1587.1,42.06047]
[1744270620952,1.26043,1587.2,1587.1,40.8]
[1744270621153,1.26039,1587.3,1587.1,40.8]
[1744270621458,1.26059,1587.0,1586.9,0.00944048]
[1744270621952,9.46839,1587.0,1586.9,0.00944048]
[1744270622651,3.2078,1587.0,1586.9,0.00944048]
[1744270622854,1.26059,1587.0,1586.9,0.00944048]
[1744270623048,9.836,1587.0,1586.9,0.00944048]
[1744270623248,16.93059,1587.0,1586.9,0.00944048]
[1744270623648,3.15167,1586.9,1586.2,1.26119]
[1744270623846,6.36054,1586.4,1585.8,40.8]
[1744270624051,3.2078,1585.9,1585.2,13.0168]
[1744270624249,3.2078,1585.9,1585.4,3.2078]
[1744270624450,3.2078,1585.9,1585.5,45.5837]
[1744270624667,1.2617,1585.6,1585.5,4.7837]
[1744270624849,10.31274048,1585.9,1585.5,0.00944048]
[1744270625047,9.05124048,1585.9,1585.5,0.00944048]
[1744270625350,5.84344048,1585.9,1585.5,40.80944048]
[1744270625656,5.84344048,1585.9,1585.8,1.26154]
[1744270625857,5.84344048,1585.9,1585.6,4.7837]
[1744270626154,1.2617,1585.6,1585.5,0.00944048]
[1744270626467,1.26189,1585.4,1585.0,4.46993]
[1744270626661,1.26189,1585.4,1585.2,4.7837]
[1744270626662,3.2078,1585.4,1585.2,4.7837]
[1744270626860,9.0418,1585.6,1585.2,4.7837]
[1744270627052,1.27093048,1585.9,1585.2,11.14649]
[1744270627353,0.00944048,1585.9,1585.7,1.2616]
[1744270627560,1.27090048,1585.9,1585.8,4.8743]
[1744270627755,0.00944048,1585.9,1585.8,4.8743]
[1744270628157,0.00944048,1585.9,1585.8,6.13584]
[1744270628358,3.21724048,1585.9,1585.8,4.89436709]
[1744270628554,0.00944048,1585.9,1585.8,11.15590709]
[1744270628860,3.2078,1586.4,1586.3,1.26114]
[1744270629061,9.0418,1586.6,1586.2,3.2078]
[1744270629259,10.30271,1586.6,1586.2,4.46898]
[1744270629453,4.993,1586.9,1586.4,0.02006709]
[1744270629659,3.2078,1586.7,1586.4,0.02006709]
[1744270629860,1.26086,1586.7,1586.5,0.00944048]
[1744270630059,1.26091,1586.6,1586.5,0.00944048]
[1744270630260,1.26089,1586.7,1586.5,0.00944048]
[1744270630558,7.97384048,1586.8,1586.6,1.28090709]
[1744270630559,0.00944048,1586.8,1586.6,1.28090709]
[1744270630751,1.27023048,1586.8,1586.6,0.02006709]
[1744270631063,3.21724048,1586.8,1586.6,0.02006709]
[1744270631256,6.01747,1586.7,1586.4,2.95279897]
[1744270631455,6.01747,1586.7,1586.3,6.1717]
[1744270631656,4.7566,1586.7,1586.3,6.1717]
[1744270631858,0.00944048,1586.8,1586.5,1.26095]
[1744270632059,0.00944048,1586.8,1586.6,1.26087]
[1744270632256,0.00944048,1586.8,1586.4,8.2835]
[1744270632457,0.00944048,1586.8,1586.5,1.27040048]
[1744270632654,0.00944048,1586.8,1586.6,5.0757]
[1744270632855,0.00944048,1586.8,1586.7,1.26083]
[1744270633053,3.2078,1587.5,1586.6,109.3905]
[1744270633259,3.2078,1587.4,1586.7,4.6381]
[1744270633460,1.26075,1586.8,1586.7,4.6381]
[1744270633756,3.2078,1587.2,1586.7,40.8]
[1744270633956,4.4681,1587.4,1587.0,1.26057]
[1744270634156,3.2078,1587.3,1587.1,4.6381]
[1744270634558,3.2078,1587.3,1586.7,54.3503]
[1744270634862,1.26059,1587.0,1586.9,4.6381]
[1744270635065,3.2078,1587.1,1586.7,9.99382]
[1744270635260,4.7088,1587.0,1586.8,1.26073]
[1744270635559,0.00944048,1587.4,1586.8,13.3701]
[1744270635761,4.71824048,1587.4,1586.8,13.3701]
[1744270635959,0.00944048,1587.4,1587.1,1.26045]
[1744270636266,3.2078,1587.3,1587.2,4.6381]
[1744270636669,9.5001306,1587.3,1587.2,4.6381]
[1744270636865,8.2397806,1587.3,1587.2,4.6381]
[1744270637064,3.2076806,1587.3,1587.2,5.89853]
[1744270637463,0.00944048,1587.4,1587.2,5.89853]
[1744270637668,3.2078,1587.3,1587.2,5.89853]
[1744270637967,4.46815,1587.3,1587.2,4.6381]
[1744270638165,9.50025,1587.3,1586.9,40.8]
[1744270638369,9.50025,1587.3,1587.0,5.89616]
[1744270638573,14.0739,1587.3,1587.1,1.26051]
[1744270638869,14.0739,1587.3,1587.2,5.89603]
[1744270639066,9.0418,1587.3,1587.2,5.89603]
[1744270639568,9.0418,1587.3,1587.2,4.6356]
[1744270639764,3.2078,1587.3,1587.2,4.6356]
[1744270640166,4.46815,1587.3,1587.2,4.6356]
[1744270640561,0.00944048,1587.4,1587.2,5.89598]
[1744270640869,1.26976048,1587.4,1587.2,5.89603]
[1744270641162,1.26976048,1587.4,1587.0,1.26056]
[1744270641163,1.26043,1587.2,1587.0,1.26056]
[1744270641364,13.9472,1587.1,1586.5,0.00944048]
[1744270641569,4.46851,1586.9,1586.6,1.26083]
[1744270641766,4.9054,1586.8,1586.6,4.7216]
[1744270642163,1.26083,1586.7,1586.6,4.7216]
[1744270642365,3.2078,1586.7,1586.5,0.00944048]
[1744270642566,4.6212,1586.6,1586.5,1.27042048]
[1744270642767,4.6212,1586.6,1586.5,0.00944048]
[1744270642963,11.26625468,1586.6,1586.5,1e-08]
[1744270643158,3.1527,1586.4,1585.9,5.0578]
[1744270643362,3.2078,1586.0,1585.5,7.9079]
[1744270643561,5.88272,1585.9,1585.6,1.2617]
[1744270643761,5.88272,1585.9,1585.6,6.3195]
[1744270643968,1.26155,1585.8,1585.7,40.8]
[1744270644166,1.27094048,1585.9,1585.6,6.32892048]
[1744270644363,1.26159,1585.8,1585.6,5.06724048]
[1744270644559,4.63064048,1585.9,1585.6,47.12888048]
[1744270644873,4.46934,1585.8,1585.6,5.06724048]
[1744270645073,4.63064048,1585.9,1585.6,5.06724048]
[1744270645367,5.89211048,1585.9,1585.6,47.12890048]
[1744270645559,5.89216048,1585.9,1585.7,4.9737]
[1744270645959,0.00944048,1585.9,1585.8,1.26154]
[1744270646172,0.00944048,1585.9,1585.7,6.23529]
[1744270646366,1.27093048,1585.9,1585.7,4.9737]
[1744270646570,0.00944048,1585.9,1585.8,1.26154]
[1744270647072,0.00944048,1585.9,1585.8,6.26154]
[1744270647273,0.00944048,1585.9,1585.8,10.89994]
[1744270647459,3.2078,1586.4,1585.8,10.89064844]
[1744270647665,4.46891,1586.4,1586.0,1.26136]
[1744270647866,4.46867,1586.7,1586.3,1.26114]
[1744270648073,8.0792,1586.7,1586.4,4.9737]
[1744270648367,3.15117,1587.2,1586.5,11.6438]
[1744270648368,4.68248467,1586.8,1586.5,11.6438]
[1744270648572,4.68248467,1586.8,1586.7,1.2608]
[1744270648773,4.69192515,1586.8,1586.7,3.2078]
[1744270648982,7.89972515,1586.8,1586.6,4.88104048]
[1744270649276,4.69192515,1586.8,1586.7,1.26083]
[1744270650171,4.69192515,1586.8,1586.7,11.13243]
[1744270650570,0.00944048,1586.8,1586.7,11.13243]
[1744270650767,9.51544302,1587.1,1587.0,1.26059]
[1744270650967,9.51544302,1587.1,1587.0,12.90439]
[1744270651772,9.51544302,1587.1,1587.0,17.90779]
[1744270652170,9.51544302,1587.1,1587.0,22.90779]
[1744270652373,4.77831996,1587.1,1587.0,22.90779]
[1744270652972,0.00944048,1587.2,1587.1,1.26051]
[1744270653369,3.2078,1587.8,1587.2,3.15108]
[1744270653671,16.12896831,1588.1,1587.4,6.35845]
[1744270653976,10.29496831,1588.1,1587.6,3.2078]
[1744270654179,10.29496831,1588.1,1588.0,1.25979]
[1744270654474,7.08716831,1588.1,1588.0,4.46759]
[1744270654680,11.43293653,1588.6,1588.5,1.2594]
[1744270654874,11.43293653,1588.6,1588.5,9.4124]
[1744270655069,11.43293653,1588.6,1588.5,50.2124]
[1744270655774,16.43293653,1588.6,1587.8,11.3608]
[1744270655980,4.7393,1588.5,1587.8,11.3608]
[1744270656178,1.25953,1588.4,1587.8,11.3608]
[1744270656484,4.7393,1588.3,1588.2,1.25963]
[1744270656682,5.834,1588.4,1588.3,1.25956]
[1744270656981,4.7393,1588.5,1588.4,1.25944]
[1744270657180,11.43293653,1588.6,1588.5,1.2594]
[1744270657373,0.00944048,1588.7,1588.5,1.2594]
[1744270657573,4.8382,1588.6,1588.5,1.2594]
[1744270657774,0.00944048,1588.7,1588.6,1.25932]
[1744270657974,0.00944048,1588.7,1588.6,12.61712]
[1744270658176,4.8e-07,1588.7,1588.6,17.61712]
[1744270658376,4.8382,1589.2,1589.1,1.25892]
[1744270658671,3.2078,1589.3,1589.1,1.25892]
[1744270658875,3.2078,1589.5,1589.0,11.3578]
[1744270659078,3.2078,1589.4,1589.1,4.7119]
[1744270659278,4.8382,1589.3,1589.2,1.25884]
[1744270659679,20.47473653,1589.6,1589.2,1.25884]
[1744270659680,17.26693653,1589.6,1589.5,1.2586]
[1744270659878,11.43293653,1589.6,1589.5,1.2586]
[1744270660483,19.64073653,1589.6,1589.4,8.148]
[1744270660683,12.08563,1589.5,1589.1,0.00944048]
[1744270660877,10.827,1589.5,1589.1,0.00944048]
[1744270661078,3.2078,1589.2,1589.1,0.00944048]
[1744270661484,4.993,1589.3,1589.1,0.00944048]
[1744270661675,11.25178,1589.3,1589.1,0.00944048]
[1744270661878,9.993,1589.3,1589.1,0.00944048]
[1744270662093,11.2518,1589.3,1589.1,0.00944048]
[1744270662385,4.993,1589.3,1589.1,0.00944048]
[1744270662685,3.2078,1589.2,1589.1,0.00944048]
[1744270663183,5.834,1589.4,1589.1,0.00944048]
[1744270663184,8.2008,1589.3,1589.1,0.00944048]
[1744270663381,5.834,1589.4,1589.1,0.00944048]
[1744270663583,5.834,1589.4,1589.1,6.27850048]
[1744270663882,4.7867,1589.3,1589.2,40.8]
[1744270664287,15.6207,1589.3,1589.1,0.00944048]
[1744270664488,4.46664,1589.2,1589.1,0.00944048]
[1744270664779,1.25894,1589.1,1588.8,1.25914]
[1744270664986,6.04571,1589.0,1588.7,42.05922]
[1744270665189,6.04575,1589.0,1588.7,40.8]
[1744270665382,7.9945,1589.0,1588.7,40.8]
[1744270665588,1.25911,1588.9,1588.7,40.8]
[1744270665793,4.7867,1588.8,1588.7,40.8]
[1744270665990,4.7867,1588.8,1588.7,42.05924]
[1744270666488,0.00944048,1589.0,1588.9,1.25908]
[1744270666683,5.13534048,1589.0,1588.8,1.25913]
[1744270666884,5.13534048,1589.0,1588.8,1.2591]
[1744270667287,0.00944048,1589.0,1588.8,1.2591]
[1744270667485,0.00944048,1589.0,1588.9,1.25908]
[1744270667877,5.13534048,1589.0,1588.9,1.25908]
[1744270668082,1e-08,1589.0,1588.9,9.46688]
[1744270668994,3.2078,1589.6,1589.3,1.25874]
[1744270669289,5.1259,1589.5,1589.3,9.40271]
[1744270669588,5.1259,1589.5,1589.4,1.25868]
[1744270669983,5.834,1589.9,1589.4,9.7226]
[1744270670291,4.9534,1589.7,1589.5,1.25858]
[1744270670589,1.25816,1590.1,1589.7,1.2584]
[1744270670792,4.9534,1589.8,1589.7,9.4024]
[1744270670983,5.834,1590.3,1589.7,48.944]
[1744270671181,4.9534,1590.2,1590.0,1.25818]
[1744270671383,3.2078,1590.6,1590.1,11.3518]
[1744270671689,3.2078,1590.6,1590.2,9.40202]
[1744270671885,4.9534,1590.5,1590.4,1.25789]
[1744270672190,11.43293653,1591.1,1590.3,3.2078]
[1744270672379,14.64073653,1591.1,1590.4,7.9304]
[1744270672686,3.2078,1590.9,1590.5,40.8]
[1744270672893,6.08839,1591.3,1590.8,1.25753]
[1744270673092,9.0418,1591.4,1590.8,1.25753]
[1744270673093,4.8312,1591.0,1590.8,8.142]
[1744270673389,4.8312,1591.0,1590.9,1.2575]
[1744270673586,4.8312,1591.0,1590.8,8.142]
[1744270673786,4.8312,1591.0,1590.9,40.8]
[1744270673981,8.039,1591.0,1590.9,40.8]
[1744270674384,13.039,1591.0,1590.9,40.8]
[1744270674585,14.29642,1591.0,1590.9,40.8]
[1744270675094,14.29644,1591.0,1590.5,8.142]
[1744270675389,3.2078,1590.9,1590.8,1.25758]
[1744270676089,3.2078,1591.6,1591.3,1.25712]
[1744270676284,5.0538,1591.5,1591.1,1.2573]
[1744270676590,11.43293653,1591.8,1591.6,1.25691]
[1744270676780,5.0538,1591.7,1591.5,8.139]
[1744270676981,11.43293653,1591.8,1591.5,8.139]
[1744270677194,11.43293653,1591.8,1591.7,1.25687]
[1744270677688,11.43293653,1591.8,1591.7,11.27107]
[1744270677891,11.43293653,1591.8,1591.7,52.07107]
[1744270678086,11.43293653,1591.8,1591.7,47.07107]
[1744270678588,3.2078,1592.2,1591.7,42.05681]